bitfinex/quotes_ETHUSD_20230403
["timestamp","ask_amount","ask_price","bid_price","bid_amount"]
[1680547425899,0.11000001,1827.5,1827.4,11.64985218]
[1680547426255,0.11000001,1827.5,1827.4,14.64985218]
[1680547426450,0.11000001,1827.5,1827.4,15.64985218]
[1680547427065,0.11000001,1827.5,1827.4,15.18693207]
[1680547429354,0.11000001,1827.5,1827.4,7.23490989]
[1680547429549,0.11000001,1827.5,1827.4,0.056]
[1680547429755,0.11000001,1827.5,1827.3,8.009]
[1680547429954,0.11000001,1827.5,1827.3,8.58902218]
[1680547430196,0.11000001,1827.5,1827.3,0.002]
[1680547430197,0.38359001,1827.5,1827.3,0.002]
[1680547430372,0.38359001,1827.5,1827.2,0.44000003]
[1680547430373,0.40599166,1827.5,1827.2,0.44000003]
[1680547430663,0.35599166,1827.5,1827.2,9.02702221]
[1680547430867,0.08240166,1827.5,1827.2,0.44200003]
[1680547431066,0.08240166,1827.5,1827.2,0.44000003]
[1680547431273,0.35599166,1827.5,1827.2,0.44000003]
[1680547431494,0.08240166,1827.5,1827.2,0.44000003]
[1680547431904,0.06000001,1827.5,1827.3,8.58702218]
[1680547432117,0.06000001,1827.5,1827.3,8.58902218]
[1680547432662,0.06000001,1827.5,1827.3,10.77702218]
[1680547433704,0.06000001,1827.5,1827.3,2.19]
[1680547434001,0.06000001,1827.5,1827.3,2.188]
[1680547434360,0.06000001,1827.5,1827.3,10.77502218]
[1680547434560,0.06000001,1827.5,1827.3,10.77702218]
[1680547434970,0.06000001,1827.5,1827.3,0.002]
[1680547435171,0.06000001,1827.5,1827.2,0.44000003]
[1680547435604,0.33359001,1827.5,1827.2,0.44000003]
[1680547435808,0.06000001,1827.5,1827.2,0.44000003]
[1680547436103,0.06000001,1827.5,1827.2,2.62800003]
[1680547436308,0.06000001,1827.5,1827.3,8.58702218]
[1680547436491,0.06000001,1827.5,1827.3,10.77702218]
[1680547436692,0.11000001,1827.7,1827.3,8.59102218]
[1680547436693,0.29357002,1827.7,1827.3,8.59102218]
[1680547437009,0.29357002,1827.7,1827.3,10.78302218]
[1680547437248,0.29356002,1827.7,1827.3,10.78302218]
[1680547437410,0.29356002,1827.7,1827.3,8.59502218]
[1680547437609,0.02000002,1827.7,1827.3,10.78302218]
[1680547438046,0.02000002,1827.7,1827.5,5.821]
[1680547438211,0.02000002,1827.7,1827.6,9.40776218]
[1680547438546,0.02000002,1827.7,1827.6,10.77502218]
[1680547439048,0.02000002,1827.7,1827.6,3.04160218]
[1680547439248,0.02000002,1827.7,1827.6,0.27358]
[1680547439420,0.02000002,1827.7,1827.6,3.00674]
[1680547439831,0.02000002,1827.7,1827.6,11.59376218]
[1680547440050,0.02000002,1827.7,1827.6,11.59576218]
[1680547440717,0.02000002,1827.7,1827.6,14.60176218]
[1680547441673,0.02000002,1827.7,1827.6,14.05460218]
[1680547441966,0.02000002,1827.7,1827.6,12.41576218]
[1680547442186,0.02000002,1827.7,1827.6,14.49376218]
[1680547442751,0.02000002,1827.7,1827.6,16.67976218]
[1680547444056,0.02000002,1827.7,1827.6,19.41558218]
[1680547445225,0.02000002,1827.7,1827.6,19.97974016]
[1680547445881,0.02000002,1827.7,1827.6,17.24392016]
[1680547447270,0.02000002,1827.7,1827.6,18.65437576]
[1680547447642,0.02000002,1827.7,1827.6,17.80813879]
[1680547448045,0.11000001,1828.0,1827.7,0.04000004]
[1680547448255,0.11000001,1828.0,1827.9,5.821]
[1680547448440,0.11000001,1828.0,1827.9,9.40962218]
[1680547448765,0.11000001,1828.0,1827.9,11.59562218]
[1680547448964,0.11000001,1828.0,1827.9,11.64662218]
[1680547450389,2.50092166,1828.0,1827.5,1.41047076]
[1680547450530,2.093,1827.6,1827.2,1.82785531]
[1680547450733,4.68121218,1827.5,1827.2,0.44000003]
[1680547451040,4.01038,1827.3,1827.2,0.44000003]
[1680547451245,14.77640218,1827.3,1827.2,0.44000003]
[1680547451441,21.01028894,1827.3,1827.2,0.44000003]
[1680547451641,21.71286598,1827.3,1827.2,0.44000003]
[1680547452304,25.92296559,1827.3,1827.2,0.44000003]
[1680547452597,0.998,1826.6,1826.5,0.1]
[1680547452889,2.91412,1826.6,1826.5,0.1]
[1680547453889,3.41412,1826.6,1826.5,0.1]
[1680547454074,8.42737598,1826.6,1826.5,0.1]
[1680547454388,1.81928,1826.4,1826.3,0.1]
[1680547454555,8.91630218,1826.4,1826.3,0.1]
[1680547454757,8.91830218,1826.4,1826.3,0.1]
[1680547455085,20.3846262,1826.4,1826.3,0.1]
[1680547455294,17.61860402,1826.4,1826.3,0.1]
[1680547455461,20.3846262,1826.4,1826.3,0.1]
[1680547455998,0.82328,1826.4,1826.3,0.1]
[1680547456155,0.27376,1826.4,1826.3,0.1]
[1680547456782,0.27371,1826.8,1826.3,0.1]
[1680547457000,0.002,1826.9,1826.4,5.821]
[1680547457212,0.948,1826.8,1826.4,0.006]
[1680547457362,0.82115,1826.7,1826.3,0.1]
[1680547457698,0.82115,1826.7,1826.3,0.106]
[1680547458059,0.004,1826.9,1826.7,2.76602218]
[1680547458295,1.60295208,1828.1,1827.3,0.052]
[1680547458296,0.11000001,1828.1,1827.3,0.052]
[1680547458520,0.004,1827.4,1827.3,14.073]
[1680547458652,0.11000001,1828.1,1827.7,5.0]
[1680547458856,0.11000001,1828.1,1827.9,0.32553]
[1680547459056,0.11000001,1828.1,1827.9,0.27553]
[1680547459256,0.11000001,1828.1,1827.9,8.78253]
[1680547459457,0.11000001,1828.1,1827.9,14.27702218]
[1680547459715,0.11000001,1828.1,1827.9,15.26202218]
[1680547459920,0.11000001,1828.1,1827.9,15.92750958]
[1680547460077,0.11000001,1828.1,1827.9,12.42550958]
[1680547460408,0.11000001,1828.1,1827.9,11.76002218]
[1680547461608,0.11000001,1828.1,1827.9,5.93902218]
[1680547462156,0.11000001,1828.1,1827.9,3.173]
[1680547462459,0.11000001,1828.1,1827.8,0.002]
[1680547462460,4.50700001,1828.1,1827.8,0.002]
[1680547462658,13.395,1827.9,1827.8,0.002]
[1680547462962,0.998,1827.6,1826.9,2.196]
[1680547463158,4.94607,1827.9,1826.9,2.46167]
[1680547463159,0.27956,1827.8,1826.9,2.46167]
[1680547463360,0.27956,1827.8,1826.9,0.29606946]
[1680547463361,0.27356,1827.8,1826.9,0.29606946]
[1680547463669,0.27356,1827.8,1827.1,5.821]
[1680547463670,1.27356,1827.8,1827.1,5.821]
[1680547463874,1.745216,1827.8,1827.1,5.823]
[1680547464401,0.998,1827.6,1827.1,0.002]
[1680547464593,0.3734,1827.5,1826.8,2.188]
[1680547464980,0.008,1827.6,1826.9,7.76602218]
[1680547465175,0.27956,1827.8,1826.9,3.04169218]
[1680547465401,0.27356,1827.8,1827.0,2.188]
[1680547465564,0.27356,1827.8,1827.1,8.58702218]
[1680547465765,0.27356,1827.8,1827.1,8.61141917]
[1680547465766,0.462024,1827.8,1827.1,8.61141917]
[1680547465967,0.462024,1827.8,1827.1,8.56141917]
[1680547466394,0.462024,1827.8,1827.1,2.74041917]
[1680547466591,0.462024,1827.8,1827.1,8.55941917]
[1680547466793,0.998,1827.6,1827.1,0.002]
[1680547467095,0.3734,1827.5,1826.8,2.188]
[1680547467346,0.3734,1827.5,1826.9,2.76602218]
[1680547467671,0.0998,1827.5,1826.9,8.58702218]
[1680547467868,0.3734,1827.5,1826.9,8.58902218]
[1680547468295,0.37339,1827.5,1826.9,8.58902218]
[1680547468500,0.37339,1827.5,1826.9,0.002]
[1680547468715,0.37339,1827.5,1826.7,6.36126156]
[1680547468896,0.37339,1827.5,1826.8,8.58702218]
[1680547469061,0.37339,1827.5,1826.8,8.58902218]
[1680547469268,0.37939,1827.5,1826.8,8.48902218]
[1680547470467,0.37939,1827.5,1826.8,4.85602218]
[1680547470667,0.37939,1827.5,1826.8,4.87642286]
[1680547471224,0.006,1827.7,1827.0,3.03968218]
[1680547471440,0.27955,1827.8,1827.1,5.821]
[1680547471575,0.27955,1827.8,1827.1,8.011]
[1680547471923,0.27955,1827.8,1827.1,5.823]
[1680547472108,3.04557218,1827.8,1827.1,0.002]
[1680547472431,4.04357218,1827.8,1827.0,0.02239823]
[1680547472776,0.40435722,1827.7,1827.0,0.02239823]
[1680547472966,0.27359,1827.5,1827.0,0.02239823]
[1680547473181,0.82078,1827.5,1827.0,0.02239823]
[1680547473724,0.006,1827.6,1827.0,0.02239823]
[1680547474025,0.67793722,1827.7,1827.0,0.29606823]
[1680547474026,0.41035722,1827.7,1827.0,0.29606823]
[1680547474205,0.2736,1827.5,1827.0,0.10674105]
[1680547474519,0.2736,1827.5,1827.0,0.02239823]
[1680547474670,0.006,1827.5,1827.0,2.78842041]
[1680547474878,0.27361,1827.5,1827.1,5.821]
[1680547475078,0.27361,1827.5,1827.1,2.19]
[1680547475280,0.8208,1827.5,1827.0,0.02239823]
[1680547475478,0.27361,1827.5,1827.0,0.02239823]
[1680547476429,0.006,1827.7,1827.0,0.02239823]
[1680547476727,2.77202218,1827.7,1827.1,0.27365]
[1680547476929,2.77202218,1827.7,1827.1,8.86067218]
[1680547476930,0.006,1827.7,1827.1,8.86067218]
[1680547477112,0.27357,1827.7,1827.2,2.188]
[1680547477298,0.27357,1827.7,1827.1,10.77702218]
[1680547477632,0.27357,1827.7,1827.1,8.58902218]
[1680547477827,0.006,1827.8,1827.3,5.821]
[1680547478134,0.006,1827.9,1827.4,15.68829218]
[1680547478313,0.11000001,1828.0,1827.4,12.69029218]
[1680547478515,0.11000001,1828.0,1827.5,2.186]
[1680547478828,0.11000001,1828.0,1827.6,0.27357]
[1680547478987,0.11000001,1828.0,1827.5,8.82976]
[1680547479184,0.11000001,1828.0,1827.5,8.28258]
[1680547479831,0.11000001,1828.0,1827.6,2.186]
[1680547480032,0.11000001,1828.0,1827.7,8.86058218]
[1680547480231,0.11000001,1828.0,1827.7,9.40971218]
[1680547480598,0.11000001,1828.0,1827.8,0.02238842]
[1680547480799,0.11000001,1828.0,1827.9,0.27353]
[1680547481004,0.11000001,1828.0,1827.8,11.3445106]
[1680547481340,0.11000001,1828.0,1827.8,9.4320406]
[1680547481651,0.11000001,1828.0,1827.9,2.186]
[1680547481852,0.11000001,1828.0,1827.9,11.59362218]
[1680547481998,0.11000001,1828.0,1827.9,11.04855218]
[1680547482185,0.11000001,1828.0,1827.9,8.86255218]
[1680547482428,0.11000001,1828.2,1827.9,11.04855218]
[1680547482631,0.11000001,1828.2,1828.0,8.86053218]
[1680547482831,0.11000001,1828.2,1828.0,8.86253218]
[1680547483154,0.11000001,1828.2,1828.0,8.58902218]
[1680547486365,0.11000001,1828.2,1828.0,0.002]
[1680547486562,0.11000001,1828.2,1827.9,8.3049072]
[1680547486997,0.11000001,1828.2,1828.0,8.58702218]
[1680547487203,0.11000001,1828.2,1828.0,0.002]
[1680547487407,0.11000001,1828.2,1827.9,0.0223872]
[1680547487695,0.11000001,1828.2,1827.9,9.42999938]
[1680547487844,0.11000001,1828.2,1827.9,9.43199938]
[1680547488051,0.11000001,1828.2,1827.9,8.88492938]
[1680547489674,0.11000001,1828.2,1827.9,8.61140938]
[1680547489996,0.11000001,1828.2,1827.9,8.58902218]
[1680547490213,0.11600001,1828.2,1827.9,8.58902218]
[1680547490496,0.11000001,1828.2,1827.9,0.002]
[1680547490694,0.11000001,1828.2,1827.8,6.36811304]
[1680547490695,0.11600001,1828.2,1827.8,6.36811304]
[1680547490905,0.11000001,1828.2,1827.8,9.13413522]
[1680547491090,0.38349001,1828.2,1827.8,11.32013522]
[1680547491271,0.38349001,1828.2,1827.8,9.13413522]
[1680547491803,0.11000001,1828.2,1827.8,9.13413522]
[1680547492307,0.38349001,1828.2,1827.8,9.13413522]
[1680547492670,0.11000001,1828.2,1827.9,8.58702218]
[1680547492933,0.1076358,1828.2,1827.9,11.04854218]
[1680547493055,0.1076358,1828.2,1827.9,10.77502218]
[1680547493383,0.1076358,1828.2,1828.0,5.821]
[1680547493568,0.1076358,1828.2,1828.0,8.58902218]
[1680547494518,0.1076358,1828.2,1828.0,8.86254218]
[1680547494726,0.1076358,1828.2,1828.1,8.60940693]
[1680547495025,0.1076358,1828.2,1828.1,13.27090693]
[1680547495164,0.1076358,1828.2,1828.1,14.07090693]
[1680547495367,0.1076358,1828.2,1828.1,16.82391693]
[1680547496406,0.1076358,1828.2,1828.1,14.62391693]
[1680547496822,0.1076358,1828.2,1828.1,16.82391693]
[1680547496970,0.1076358,1828.2,1828.1,21.22091693]
[1680547497459,0.1076358,1828.2,1828.1,14.62391693]
[1680547497588,0.1076358,1828.2,1828.1,16.82391693]
[1680547497782,0.1076358,1828.2,1828.1,14.07690693]
[1680547498019,0.1076358,1828.2,1828.1,14.62391693]
[1680547499208,0.1076358,1828.2,1828.1,16.82391693]
[1680547499674,0.1076358,1828.2,1828.1,17.10158727]
[1680547500832,0.1076358,1828.2,1828.1,11.87920252]
[1680547501117,0.1076358,1828.2,1828.1,11.60153218]
[1680547501695,0.1076358,1828.2,1828.1,11.59553218]
[1680547502834,0.1076358,1828.2,1828.1,18.45820252]
[1680547503031,0.11000001,1828.6,1828.5,5.821]
[1680547503332,0.11000001,1828.6,1828.5,13.50314218]
[1680547503500,0.11000001,1828.6,1828.5,15.68914218]
[1680547503707,0.11000001,1828.6,1828.5,30.56214218]
[1680547504022,0.11000001,1828.6,1828.5,33.89099941]
[1680547504198,0.11000001,1829.1,1828.9,6.321]
[1680547504397,0.11000001,1829.1,1829.0,11.60939592]
[1680547504635,0.11000001,1829.1,1829.0,17.90899592]
[1680547505004,0.11000001,1829.1,1829.0,18.18666626]
[1680547505209,0.006,1830.0,1829.5,5.821]
[1680547505422,8.0,1830.9,1829.9,5.917]
[1680547505423,0.904,1830.8,1829.9,5.917]
[1680547505608,0.27313,1830.7,1830.1,5.821]
[1680547505842,0.002,1830.9,1830.4,8.58702218]
[1680547506067,7.39045,1831.4,1830.6,5.821]
[1680547506207,0.81912,1831.2,1830.9,2.76602218]
[1680547506413,0.0506414,1831.6,1831.0,5.821]
[1680547506414,0.0526414,1831.6,1831.0,5.821]
[1680547506656,0.0526414,1831.6,1831.0,2.19]
[1680547506657,1.177,1831.5,1831.0,2.19]
[1680547506860,1.177,1831.5,1831.1,4.97037026]
[1680547506861,0.904,1831.5,1831.1,4.97037026]
[1680547507065,0.0506414,1831.6,1831.1,0.02834808]
[1680547507266,0.0506414,1831.6,1830.6,3.0]
[1680547507267,0.904,1831.2,1830.8,0.006]
[1680547507555,0.27305,1831.2,1830.8,2.76602218]
[1680547507710,0.355161,1831.2,1830.8,8.59302218]
[1680547507912,0.986111,1831.2,1830.8,8.59502218]
[1680547508153,0.904,1831.2,1830.8,2.77402218]
[1680547508358,0.904,1831.1,1830.8,2.66202217]
[1680547508536,0.904,1831.0,1830.8,2.66202217]
[1680547508783,0.006,1831.2,1830.8,8.48302217]
[1680547508953,1.6886214,1831.6,1830.9,8.003]
[1680547508954,0.0566414,1831.6,1830.9,8.003]
[1680547509154,0.3236314,1831.6,1831.1,5.821]
[1680547509381,0.3236314,1831.6,1831.1,2.76802218]
[1680547509587,0.3236314,1831.6,1831.1,2.76602218]
[1680547509802,0.3236314,1831.6,1831.2,2.76602218]
[1680547509803,0.9546414,1831.6,1831.2,2.76602218]
[1680547509961,0.3236214,1831.6,1831.2,2.76602218]
[1680547510290,0.904,1831.5,1831.0,0.002]
[1680547510591,0.904,1831.1,1830.8,2.182]
[1680547510892,0.006,1831.3,1830.8,8.58702218]
[1680547511190,0.27304,1831.3,1830.8,8.58902218]
[1680547511362,0.0506414,1831.6,1831.0,5.821]
[1680547511363,0.0566414,1831.6,1831.0,5.821]
[1680547511562,0.904,1831.5,1831.0,0.002]
[1680547511752,0.5966214,1831.6,1831.0,8.58702218]
[1680547511753,0.904,1831.3,1831.0,8.58702218]
[1680547511953,0.904,1831.3,1831.0,8.58902218]
[1680547512394,1.17703,1831.3,1831.0,8.58902218]
[1680547512930,0.54601,1831.5,1831.3,0.096]
[1680547512931,0.006,1831.5,1831.3,0.096]
[1680547513135,0.006,1831.5,1831.4,8.58702218]
[1680547513136,8.9535512,1831.5,1831.4,8.58702218]
[1680547513293,0.9535512,1831.3,1831.2,0.002]
[1680547513492,0.9455512,1831.3,1830.8,0.0544488]
[1680547513706,0.9455512,1831.2,1830.9,2.76602218]
[1680547513907,1.2185912,1831.2,1831.0,2.76602218]
[1680547514089,0.9455512,1831.2,1830.9,0.002]
[1680547514289,0.27302,1831.4,1830.9,5.821]
[1680547514490,0.9455512,1831.2,1831.0,8.60937148]
[1680547514723,0.9455512,1831.2,1831.0,8.61137148]
[1680547514916,0.9455512,1831.2,1831.0,8.60831897]
[1680547515299,0.9455512,1831.3,1831.0,8.60831897]
[1680547515800,0.008,1831.6,1831.4,0.1044488]
[1680547516148,0.27292,1832.0,1831.5,8.69147098]
[1680547516328,0.013,1832.1,1831.8,0.1044488]
[1680547516534,0.007,1832.1,1831.8,8.58702218]
[1680547516704,0.27992,1832.1,1831.8,8.58902218]
[1680547517022,1.2586452,1832.1,1831.8,0.002]
[1680547517203,1.2586452,1832.1,1831.7,5.829]
[1680547517403,0.363094,1832.1,1831.7,8.58902218]
[1680547517720,0.007,1832.1,1831.8,2.76602218]
[1680547517928,0.007,1832.1,1831.8,2.87047098]
[1680547518125,0.007,1832.1,1832.0,8.58702218]
[1680547518439,0.11000001,1832.3,1832.2,0.1044488]
[1680547518593,0.11000001,1832.3,1832.2,7.87047098]
[1680547518799,0.11000001,1832.3,1832.2,2.87247098]
[1680547518996,0.11000001,1832.3,1832.2,2.87047098]
[1680547519610,0.11000001,1832.3,1832.2,2.182]
[1680547519611,0.33288001,1832.3,1832.2,2.182]
[1680547519801,0.8955512,1832.1,1831.6,0.006]
[1680547520030,0.52130713,1832.3,1831.3,0.6504888]
[1680547520229,0.52130713,1832.3,1831.5,4.94802218]
[1680547520429,0.33289001,1832.3,1831.8,2.76602218]
[1680547521071,0.002,1832.5,1832.4,0.1044488]
[1680547521286,0.007,1832.9,1832.7,0.1044488]
[1680547521626,0.007,1832.9,1832.8,2.76602218]
[1680547521627,0.2798,1832.9,1832.8,2.76602218]
[1680547521969,0.007,1832.9,1832.8,2.76602218]
[1680547522184,0.007,1832.9,1832.8,2.87047098]
[1680547523459,0.007,1832.9,1832.8,3.14327098]
[1680547523680,0.007,1832.9,1832.8,9.69227098]
[1680547523990,0.11000001,1833.2,1833.1,0.1044488]
[1680547524290,0.11000001,1833.2,1833.1,2.76602218]
[1680547524453,0.11000001,1833.2,1833.1,2.87047098]
[1680547525159,0.11000001,1833.2,1833.1,2.76602218]
[1680547525364,0.11000001,1833.2,1833.0,0.002]
[1680547525563,0.11000001,1833.2,1833.0,2.76602218]
[1680547525962,0.38274001,1833.2,1832.8,0.002]
[1680547526162,0.38274001,1833.2,1832.9,2.76602218]
[1680547526163,0.47556101,1833.2,1832.9,2.76602218]
[1680547526380,0.11000001,1833.2,1832.9,2.76602218]
[1680547526563,0.11000001,1833.2,1833.1,0.1044488]
[1680547526761,0.11000001,1833.2,1833.1,2.76602218]
[1680547526991,0.11600001,1833.2,1833.1,2.76602218]
[1680547527196,0.11000001,1833.2,1833.1,2.76602218]
[1680547527350,0.11000001,1833.2,1833.1,5.21878218]
[1680547527612,0.11000001,1833.2,1833.1,3.04678218]
[1680547527940,0.11600001,1833.2,1833.1,4.94602218]
[1680547528136,4.91324104,1833.3,1833.1,12.38202218]
[1680547528308,4.91124104,1833.3,1833.2,3.10047098]
[1680547528513,4.91124104,1833.3,1833.2,5.28647098]
[1680547528715,4.91124104,1833.3,1833.2,7.48847098]
[1680547529242,4.91124104,1833.3,1833.2,5.05847098]
[1680547529419,5.41376515,1833.3,1833.2,2.77402218]
[1680547529742,5.41376515,1833.3,1833.2,2.76602218]
[1680547529743,5.36576515,1833.3,1833.2,2.76602218]
[1680547529910,4.86324104,1833.3,1833.2,2.76602218]
[1680547530236,4.86124104,1833.3,1833.2,2.76602218]
[1680547530537,4.86724104,1833.3,1833.2,2.76602218]
[1680547530834,5.13997104,1833.3,1833.1,0.002]
[1680547531034,5.44498215,1833.3,1833.1,2.76602218]
[1680547531208,5.44898215,1833.3,1833.1,2.76602218]
[1680547531409,5.72171215,1833.3,1833.1,2.76602218]
[1680547531607,4.86924104,1833.3,1833.2,2.76602218]
[1680547531808,4.86724104,1833.3,1833.2,2.87047098]
[1680547532238,4.86124104,1833.3,1833.2,2.87047098]
[1680547532410,4.86124104,1833.3,1833.2,2.76602218]
[1680547532611,4.86124104,1833.3,1833.2,12.25047098]
[1680547532817,4.86124104,1833.3,1833.2,10.07847098]
[1680547533136,4.86124104,1833.3,1833.2,2.87847098]
[1680547533328,4.86124104,1833.3,1833.2,5.05047098]
[1680547533522,4.86124104,1833.3,1833.2,2.87847098]
[1680547533735,4.86124104,1833.3,1833.2,2.87047098]
[1680547534193,4.86124104,1833.3,1833.2,2.76602218]
[1680547534395,0.006,1833.3,1833.2,2.87047098]
[1680547534594,0.27273,1833.3,1833.2,2.87047098]
[1680547534900,1.1682812,1833.3,1833.0,0.002]
[1680547535102,1.1682812,1833.3,1832.9,0.1044488]
[1680547535103,0.11682812,1833.2,1832.9,0.1044488]
[1680547535400,0.11682812,1833.2,1832.7,0.1064488]
[1680547535401,0.27276,1833.2,1832.7,0.1064488]
[1680547535598,1.7178012,1833.2,1832.8,2.71602218]
[1680547535799,0.81825,1833.2,1832.8,2.71602218]
[1680547535995,0.27277,1833.0,1832.8,2.71602218]
[1680547536198,0.27276,1833.1,1832.8,2.71602218]
[1680547536435,0.54549,1833.2,1832.8,2.71602218]
[1680547536436,0.27275,1833.2,1832.8,2.71602218]
[1680547536638,0.27275,1833.2,1832.8,2.82047098]
[1680547536940,0.27275,1833.2,1832.7,0.002]
[1680547536941,0.8955512,1833.1,1832.7,0.002]
[1680547537243,0.90787512,1833.0,1832.5,0.1044488]
[1680547537414,0.81832,1833.0,1832.5,2.87047098]
[1680547537741,0.81832,1833.0,1832.7,0.1044488]
[1680547537901,0.81832,1833.0,1832.7,2.76602218]
[1680547538099,1.009259,1833.0,1832.7,2.76602218]
[1680547539015,1.009259,1833.0,1832.7,2.87047098]
[1680547539454,1.009259,1833.0,1832.7,0.1044488]
[1680547539613,1.009259,1833.0,1832.3,2.182]
[1680547539815,1.009259,1833.0,1832.7,0.1044488]
[1680547540017,1.009259,1833.0,1832.3,0.008]
[1680547540018,0.9964771,1832.9,1832.3,0.008]
[1680547540366,1.90969,1832.8,1832.0,0.1]
[1680547540543,0.8955512,1832.6,1832.3,0.1044488]
[1680547540870,1.99950512,1832.5,1832.2,0.1044488]
[1680547541047,1.90995,1832.5,1832.3,2.76602218]
[1680547541221,0.81855,1832.5,1832.3,2.87047098]
[1680547541556,1.2000859,1832.9,1832.6,0.1044488]
[1680547541861,0.720217,1833.0,1832.7,2.76602218]
[1680547542020,0.720217,1833.0,1832.8,0.1044488]
[1680547542021,0.2728,1832.9,1832.8,0.1044488]
[1680547542215,0.529278,1833.0,1832.8,0.1044488]
[1680547542427,0.529278,1833.0,1832.9,0.1044488]
[1680547542639,1.347598,1833.0,1832.5,0.1124488]
[1680547542934,1.347598,1833.0,1832.5,2.76602218]
[1680547543154,1.347598,1833.0,1832.7,0.1044488]
[1680547543155,0.1347598,1832.9,1832.7,0.1044488]
[1680547543456,0.1347598,1832.9,1832.4,0.008]
[1680547543457,0.81841,1832.8,1832.4,0.006]
[1680547543661,1.90963,1832.8,1832.3,0.1044488]
[1680547543868,2.00494698,1832.8,1832.3,2.87047098]
[1680547544229,2.00494698,1832.8,1832.5,0.1044488]
[1680547544617,2.00494698,1832.8,1832.6,2.76602218]
[1680547544618,1.90963,1832.8,1832.6,2.76602218]
[1680547544817,1.90963,1832.8,1832.7,0.1044488]
[1680547545058,0.2728,1832.8,1832.7,0.1044488]
[1680547545554,1.347598,1833.0,1832.9,0.1044488]
[1680547546059,0.802048,1833.0,1832.9,0.1044488]
[1680547546217,1.0459168,1833.0,1832.9,0.1044488]
[1680547546447,1.5914668,1833.0,1832.9,0.1044488]
[1680547546887,1.5914668,1833.0,1832.4,0.008]
[1680547547099,1.5914668,1833.0,1832.7,0.1044488]
[1680547547383,0.15914668,1832.9,1832.7,0.1044488]
[1680547547684,0.2728,1832.9,1832.7,0.1044488]
[1680547547884,0.81838,1832.9,1832.7,0.1044488]
[1680547548604,0.81838,1832.9,1832.5,0.1044488]
[1680547549511,0.8955512,1832.6,1832.2,0.1044488]
[1680547549653,1.90996,1832.5,1832.2,0.1044488]
[1680547549845,0.190996,1832.4,1832.2,0.1044488]
[1680547550135,1.91016,1832.3,1832.2,0.1044488]
[1680547550680,1.91016,1832.3,1832.0,0.1]
[1680547551295,1.91016,1832.3,1832.1,0.1044488]
[1680547551598,0.008,1832.4,1832.3,0.1044488]
[1680547551806,0.008,1832.4,1832.3,2.87047098]
[1680547551807,0.27286,1832.4,1832.3,2.87047098]
[1680547552010,3.54725,1832.4,1832.3,0.1044488]
[1680547552154,0.81859,1832.4,1832.1,0.1044488]
[1680547552658,0.27286,1832.4,1832.3,0.1044488]
[1680547552971,1.63696,1832.7,1832.4,0.1044488]
[1680547553279,1.63696,1832.7,1832.3,2.76602218]
[1680547553280,0.27283,1832.7,1832.6,0.1044488]
[1680547553891,0.7731468,1833.0,1832.6,2.76602218]
[1680547553892,0.529278,1833.0,1832.6,2.76602218]
[1680547554069,1.620428,1833.0,1832.9,0.1044488]
[1680547554410,45.7842208,1833.0,1832.9,0.1044488]
[1680547554552,40.3305508,1833.0,1832.9,0.1044488]
[1680547554755,40.3305508,1833.0,1832.4,0.436346]
[1680547555267,40.3305508,1833.0,1832.9,0.1044488]
[1680547555467,40.3305508,1833.0,1832.6,0.1044488]
[1680547555667,4.03305508,1832.9,1832.4,0.436346]
[1680547555883,1.90968,1832.8,1832.4,0.436346]
[1680547556193,0.81843,1832.8,1832.4,0.436346]
[1680547556391,0.81843,1832.8,1832.4,0.5407948]
[1680547556600,4.03505508,1832.9,1832.4,0.5407948]
[1680547556601,0.27283,1832.6,1832.4,0.5407948]
[1680547556751,0.27283,1832.6,1832.4,0.436346]
[1680547556752,0.8185,1832.6,1832.4,0.436346]
[1680547556947,0.54758,1832.9,1832.8,0.1044488]
[1680547557155,0.531278,1833.0,1832.8,2.87047098]
[1680547557488,0.529278,1833.0,1832.9,2.87047098]
[1680547557723,0.529278,1833.0,1832.8,0.002]
[1680547557918,0.529278,1833.0,1832.4,0.436346]
[1680547557919,1.347598,1833.0,1832.4,0.436346]
[1680547558123,0.1347598,1832.9,1832.4,0.436346]
[1680547558322,4.63782,1832.8,1832.4,0.436346]
[1680547559346,11.78484218,1832.8,1832.4,0.436346]
[1680547559497,11.78684218,1832.8,1832.4,0.436346]
[1680547559832,1.90984,1832.6,1832.4,0.436346]
[1680547560044,2.400824,1832.6,1832.4,0.436346]
[1680547560992,1.90984,1832.6,1832.4,0.436346]
[1680547562805,0.8955512,1832.5,1832.4,4.6e-05]
[1680547563000,12.8996312,1832.5,1832.4,4.6e-05]
[1680547563205,12.9016312,1832.5,1832.4,4.6e-05]
[1680547563549,27.8691995,1832.5,1832.4,4.6e-05]
[1680547563904,22.0481995,1832.5,1832.4,4.6e-05]
[1680547564602,27.8691995,1832.5,1832.4,4.6e-05]
[1680547565403,27.8751995,1832.5,1832.4,4.6e-05]
[1680547565604,26.9736483,1832.5,1832.4,4.6e-05]
[1680547565850,18.1526483,1832.5,1832.4,4.6e-05]
[1680547566054,23.9736483,1832.5,1832.4,4.6e-05]
[1680547566601,18.1526483,1832.5,1832.4,4.6e-05]
[1680547566901,12.6956283,1832.5,1832.4,4.6e-05]
[1680547567201,18.5166283,1832.5,1832.4,4.6e-05]
[1680547567400,23.9736483,1832.5,1832.4,4.6e-05]
[1680547568254,26.9736483,1832.5,1832.4,4.6e-05]
[1680547568419,27.2036483,1832.5,1832.4,4.6e-05]
[1680547568754,26.9736483,1832.5,1832.4,4.6e-05]
[1680547570375,26.9736483,1832.5,1832.1,0.1044488]
[1680547570508,4.397,1832.3,1832.0,0.1]
[1680547570709,4.63921,1832.2,1832.1,0.1044488]
[1680547571742,1.91026,1832.2,1832.1,0.1044488]
[1680547571944,0.002,1832.4,1832.0,0.1]
[1680547572268,1.63904,1832.6,1832.1,8.58702218]
[1680547572419,1.63904,1832.6,1832.4,0.1044488]
[1680547572420,0.81855,1832.5,1832.4,0.1044488]
[1680547572835,0.27285,1832.5,1832.4,0.1044488]
[1680547573282,0.81855,1832.5,1832.4,0.1044488]
[1680547573499,1.09917,1832.9,1832.7,0.1044488]
[1680547573635,0.81842,1832.8,1832.7,0.1044488]
[1680547573835,0.81842,1832.8,1832.3,5.821]
[1680547573836,0.190959,1832.8,1832.5,0.02833101]
[1680547574076,0.81841,1832.8,1832.3,5.9274488]
[1680547574232,0.81841,1832.8,1832.3,5.823]